fUSD/lending_fUSD_20260402
["ID","MTS","AMOUNT","RATE_DAILY","PERIOD"]
[419293515,1775121039254,-150.0,0.00015316,2]
[419293516,1775121039265,-170.76473848,0.00015319,2]
[419293517,1775121039275,-428.74241925,0.0001532,2]
[419293518,1775121039285,-150.0,0.00015325,2]
[419293519,1775121039294,-150.0,0.00015327,2]
[419293520,1775121039304,-170.76473848,0.00015336,2]
[419293521,1775121039313,-150.0,0.00015341,2]
[419293522,1775121039322,-150.0,0.00015341,2]
[419293523,1775121039331,-150.0,0.00015341,2]
[419293524,1775121039340,-150.0,0.00015341,2]
[419293525,1775121039349,-150.0,0.0001535,2]
[419293526,1775121039358,-150.0,0.0001535,2]
[419293527,1775121039368,-500.0,0.00015351,2]
[419293528,1775121039378,-151.0,0.00015351,2]
[419293529,1775121039387,-170.76473848,0.00015352,2]
[419293530,1775121039396,-150.0,0.0001536,2]
[419293531,1775121039405,-150.0,0.00015361,2]
[419293532,1775121039415,-150.0,0.00015364,2]
[419293533,1775121039424,-170.76473848,0.00015369,2]
[419293534,1775121039434,-150.0,0.00015373,2]
[419293535,1775121039744,-150.0,0.00015374,2]
[419293536,1775121039754,-150.0,0.00015374,2]
[419293537,1775121039763,-150.0,0.00015385,2]
[419293538,1775121039772,-170.76473848,0.00015386,2]
[419293539,1775121039782,-150.0,0.00015396,2]
[419293540,1775121039791,-150.0,0.00015396,2]
[419293541,1775121039800,-170.76473848,0.00015402,2]
[419293542,1775121039810,-150.0,0.00015404,2]
[419293543,1775121039819,-500.0,0.00015406,2]
[419293544,1775121039827,-151.0,0.00015406,2]
[419293545,1775121039837,-150.0,0.00015408,2]
[419293546,1775121039846,-150.0,0.00015408,2]
[419293547,1775121039856,-170.98,0.00015411,2]
[419293548,1775121039865,-150.0,0.00015419,2]
[419293549,1775121039874,-150.0,0.00015419,2]
[419293550,1775121039884,-170.76473848,0.00015419,2]
[419293551,1775121039894,-150.0,0.00015419,2]
[419293552,1775121039903,-150.0,0.00015419,2]
[419293553,1775121039912,-198.36,0.0001542,2]
[419293554,1775121039921,-150.0,0.00015431,2]
[419293555,1775121039930,-170.76473848,0.00015436,2]
[419293556,1775121039940,-150.0,0.00015442,2]
[419293557,1775121039951,-150.0,0.00015442,2]
[419293558,1775121039961,-150.0,0.00015442,2]
[419293559,1775121039970,-150.0,0.00015447,2]
[419293560,1775121039979,-150.0,0.00015449,2]
[419293561,1775121039989,-170.76473848,0.00015453,2]
[419293562,1775121039998,-150.0,0.00015454,2]
[419293563,1775121040008,-500.0,0.00015461,2]
[419293564,1775121040020,-151.0,0.00015461,2]
[419293565,1775121040030,-150.0,0.00015465,2]
[419293566,1775121040040,-150.0,0.00015466,2]
[419293567,1775121040050,-170.76473848,0.00015469,2]
[419293568,1775121040061,-150.0,0.00015475,2]
[419293569,1775121040071,-150.0,0.00015475,2]
[419293570,1775121040081,-170.76473848,0.00015486,2]
[419293571,1775121040090,-150.0,0.00015488,2]
[419293572,1775121040099,-150.0,0.00015488,2]
[419293573,1775121040108,-420.0,0.00015493,2]
[419293574,1775121040117,-150.0,0.00015494,2]
[419293575,1775121040126,-150.0,0.00015498,2]
[419293576,1775121040135,-200.0,0.000155,2]
[419293577,1775121040145,-150.0,0.00015501,2]
[419293578,1775121040154,-170.76473848,0.00015503,2]
[419293579,1775121040164,-150.0,0.00015509,2]
[419293580,1775121040173,-150.0,0.00015509,2]
[419293581,1775121040182,-150.0,0.00015511,2]
[419293582,1775121040191,-500.0,0.00015516,2]
[419293583,1775121040200,-151.0,0.00015516,2]
[419293584,1775121040210,-200.0,0.00015516,2]
[419293585,1775121040219,-200.0,0.00015516,2]
[419293586,1775121040228,-200.0,0.00015516,2]
[419293587,1775121040237,-200.0,0.00015516,2]
[419293588,1775121040246,-200.0,0.00015516,2]
[419293589,1775121040255,-200.0,0.00015516,2]
[419293590,1775121040264,-348.0,0.00015516,2]
[419293591,1775121040273,-170.76473848,0.00015519,2]
[419293592,1775121040282,-150.0,0.00015522,2]
[419293593,1775121040291,-1500.0,0.00015528,2]
[419293594,1775121040301,-1500.0,0.00015528,2]
[419293595,1775121040311,-1500.0,0.00015528,2]
[419293596,1775121040320,-1500.0,0.00015528,2]
[419293597,1775121040329,-1500.0,0.00015528,2]
[419293598,1775121040339,-1500.0,0.00015528,2]
[419293599,1775121040348,-1500.0,0.00015528,2]
[419293600,1775121040357,-1500.0,0.00015528,2]
[419293601,1775121040366,-1500.0,0.00015528,2]
[419293602,1775121040375,-1099.0,0.00015528,2]
[419293603,1775121040384,-150.0,0.00015529,2]
[419293604,1775121040394,-150.0,0.00015534,2]
[419293605,1775121040403,-170.76473848,0.00015536,2]
[419293606,1775121040412,-150.0,0.00015536,2]
[419293607,1775121040421,-150.0,0.00015538,2]
[419293608,1775121040431,-150.0,0.00015543,2]
[419293609,1775121040440,-150.0,0.00015543,2]
[419293610,1775121040449,-170.76473848,0.00015553,2]
[419293611,1775121040458,-150.0,0.00015557,2]
[419293612,1775121040468,-150.0,0.00015557,2]
[419293613,1775121040477,-1680.0,0.00015558,2]
[419293614,1775121040486,-170.76473848,0.00015569,2]
[419293615,1775121040495,-500.0,0.00015571,2]
[419293616,1775121040504,-151.0,0.00015571,2]
[419293617,1775121040514,-150.0,0.00015571,2]
[419293618,1775121040524,-150.0,0.00015577,2]
[419293619,1775121040533,-150.0,0.00015577,2]
[419293620,1775121040543,-150.0,0.00015577,2]
[419293621,1775121040552,-150.0,0.00015577,2]
[419293622,1775121040562,-150.0,0.0001558,2]
[419293623,1775121040571,-150.0,0.00015583,2]
[419293624,1775121040580,-170.76473848,0.00015586,2]
[419293625,1775121040590,-150.0,0.00015591,2]
[419293626,1775121040599,-1000.0,0.000156,2]
[419293627,1775121040609,-2000.0,0.000156,2]
[419293628,1775121040618,-2600.0,0.000156,5]
[419293629,1775121040627,-170.76473848,0.00015603,2]
[419293630,1775121040636,-150.0,0.00015603,2]
[419293631,1775121040646,-150.0,0.00015603,2]
[419293632,1775121040657,-150.0,0.00015607,2]
[419293633,1775121040667,-150.0,0.0001561,2]
[419293634,1775121040677,-150.0,0.0001561,2]
[419293635,1775121040687,-150.0,0.00015612,2]
[419293636,1775121040698,-170.76473848,0.00015619,2]
[419293637,1775121040709,-150.0,0.00015626,2]
[419293638,1775121040720,-150.0,0.00015626,2]
[419293639,1775121040731,-500.0,0.00015626,2]
[419293640,1775121040741,-151.0,0.00015626,2]
[419293641,1775121040751,-150.0,0.00015628,2]
[419293642,1775121040760,-170.76473848,0.00015636,2]
[419293643,1775121040770,-150.0,0.00015642,2]
[419293644,1775121040781,-150.0,0.00015644,2]
[419293645,1775121040790,-150.0,0.00015644,2]
[419293646,1775121040800,-150.0,0.00015649,2]
[419293647,1775121040810,-170.76473848,0.00015653,2]
[419293648,1775121040820,-150.0,0.00015655,2]
[419293649,1775121040829,-1571.0,0.00015658,2]
[419293650,1775121040838,-150.0,0.0001566,2]
[419293651,1775121040847,-170.76473848,0.00015669,2]
[419293652,1775121040856,-150.0,0.00015672,2]
[419293653,1775121040865,-167.42,0.00015672,2]
[419293654,1775121040874,-150.0,0.00015672,2]
[419293655,1775121040884,-461.35735938,0.00015673,2]
[419293656,1775121040893,-500.0,0.00015673,2]
[419293657,1775121040902,-500.0,0.00015673,2]
[419293658,1775121040911,-500.0,0.00015673,2]
[419293659,1775121040920,-150.0,0.00015677,2]
[419293660,1775121040929,-150.0,0.00015678,2]
[419293661,1775121040939,-150.0,0.00015678,2]
[419293662,1775121040950,-500.0,0.00015681,2]
[419293663,1775121040960,-151.0,0.00015681,2]
[419293664,1775121040970,-170.76473848,0.00015686,2]
[419293665,1775121040979,-150.0,0.00015695,2]
[419293666,1775121040988,-150.0,0.00015695,2]
[419293667,1775121040998,-150.0,0.00015695,2]
[419293668,1775121041009,-150.0,0.00015695,2]
[419293669,1775121041019,-150.0,0.00015695,2]
[419293670,1775121041028,-13114.90387506,0.00015699,2]
[419293671,1775121041038,-732.31995216,0.000157,2]
[419293672,1775121041047,-5000.0,0.000157,2]
[419293673,1775121041056,-2521.0,0.000157,2]
[419293674,1775121041066,-3796.82352923,0.000157,5]
[419293675,1775121041087,-1503.17647077,0.000157,5]
[419293676,1775121041097,-1976.6496,0.000157,2]
[419293677,1775121041107,-340.85302078,0.000157,2]
[419293678,1775121041116,-1531.62601123,0.000157,2]
[419293679,1775121041127,-2965.3236917,0.000157,2]
[419293681,1775121041136,-1724.92916889,0.000157,2]
[419293682,1775121042087,-27658.43033173,0.000157,2]
[419293683,1775121042097,-202.77599014,0.000157,2]
[419293684,1775121042107,-817.23526846,0.000157,2]
[419293685,1775121042116,-170.76473848,0.00015703,2]
[419293686,1775121042126,-350.0,0.00015705,2]
[419293687,1775121042135,-150.0,0.00015711,2]
[419293689,1775121042145,-150.0,0.00015711,2]
[419293690,1775121042154,-150.0,0.00015712,2]
[419293692,1775121042164,-215.47,0.00015716,2]
[419293693,1775121042174,-150.0,0.00015717,2]
[419293694,1775121042186,-150.0,0.00015717,2]
[419293695,1775121042196,-170.76473848,0.0001572,2]
[419293697,1775121042205,-150.0,0.00015729,2]
[419293698,1775121042215,-150.0,0.00015734,2]
[419293699,1775121042224,-181.08010149,0.00015734,2]
[419293700,1775121042233,-342.98195243,0.00015735,2]
[419293701,1775121042243,-204.7646566,0.00015735,2]
[419293702,1775121042252,-771.01748645,0.00015735,2]
[419293703,1775121042261,-500.0,0.00015736,2]
[419293704,1775121042271,-151.0,0.00015736,2]
[419293705,1775121042281,-48.80887734,0.00015736,2]
[419293706,1775121042403,-121.95586114,0.00015736,2]
[419293707,1775121042414,-150.0,0.0001574,2]
[419293708,1775121042423,-103.04286268,0.00015745,2]
[419293709,1775121042435,-46.95713732,0.00015745,2]
[419293710,1775121042445,-150.0,0.00015745,2]
[419293711,1775121042454,-82.15642165,0.00015747,2]
[419293712,1775121042466,-67.84357835,0.00015747,2]
[419293713,1775121042475,-170.76473848,0.00015753,2]
[419293714,1775121042485,-164.0,0.00015753,2]
[419293715,1775121042494,-58.77946243,0.00015753,2]
[419293716,1775121042517,-104.22053757,0.00015753,2]
[419293717,1775121042527,-150.0,0.00015761,2]
[419293718,1775121042536,-150.0,0.00015763,2]
[419293719,1775121042546,-150.0,0.00015763,2]
[419293720,1775121042555,-209.487,0.00015766,2]
[419293721,1775121042564,-2481.294,0.00015766,2]
[419293722,1775121042573,-1000.0,0.00015768,2]
[419293723,1775121042582,-170.76473848,0.0001577,2]
[419293724,1775121042591,-501.32196063,0.00015773,2]
[419293725,1775121042611,-244.6131476,0.00015773,2]
[419293726,1775121042623,-500.0,0.00015773,2]
[419293727,1775121042633,-500.0,0.00015773,2]
[419293728,1775121042642,-500.0,0.00015773,2]
[419293729,1775121042652,-500.0,0.00015773,2]
[419293730,1775121042661,-501.17803904,0.00015773,2]
[419293731,1775121042671,-501.46955268,0.00015773,2]
[419293732,1775121042681,-352.01583663,0.00015773,2]
[419293733,1775121042690,-500.0,0.00015773,2]
[419293734,1775121042700,-500.0,0.00015773,2]
[419293735,1775121042709,-500.68784115,0.00015773,2]
[419293736,1775121042719,-500.0,0.00015773,2]
[419293737,1775121042729,-192.46615458,0.00015773,2]
[419293738,1775121042739,-500.0,0.00015773,2]
[419293739,1775121042750,-163.00164186,0.00015773,2]
[419293740,1775121042761,-500.0,0.00015773,2]
[419293741,1775121042771,-500.0,0.00015773,2]
[419293742,1775121042783,-501.36546682,0.00015773,2]
[419293743,1775121042794,-163.72436598,0.00015773,2]
[419293744,1775121042804,-500.19822114,0.00015773,2]
[419293745,1775121042813,-166.73550855,0.00015773,2]
[419293746,1775121042823,-500.21051208,0.00015773,2]
[419293747,1775121042833,-159.74316253,0.00015773,2]
[419293748,1775121042843,-474.26742554,0.00015773,2]
[419293749,1775121042854,-164.2795372,0.00015773,2]
[419293750,1775121042863,-500.0,0.00015773,2]
[419293751,1775121042873,-500.0,0.00015773,2]
[419293752,1775121042883,-500.0,0.00015773,2]
[419293753,1775121042892,-500.0,0.00015773,2]
[419293754,1775121042902,-500.0,0.00015773,2]
[419293755,1775121042911,-770.87,0.00015774,2]
[419293756,1775121042921,-389.0,0.00015777,2]
[419293757,1775121042931,-150.0,0.00015777,2]
[419293758,1775121042940,-150.0,0.00015779,2]
[419293759,1775121042950,-150.0,0.00015779,2]
[419293760,1775121042960,-150.0,0.00015782,2]
[419293761,1775121042970,-500.0,0.00015785,2]
[419293762,1775121042980,-170.76473848,0.00015786,2]
[419293763,1775121042990,-150.0,0.00015786,2]
[419293764,1775121043000,-150.0,0.00015786,2]
[419293765,1775121043011,-522.2240675,0.0001579,2]
[419293766,1775121043021,-150.0,0.00015798,2]
[419293767,1775121043032,-1025.01196795,0.00015798,5]
[419293768,1775121043043,-500.0,0.00015799,2]
[419293770,1775121043054,-500.0,0.00015799,2]
[419293773,1775121043065,-500.0,0.00015799,2]
[419293774,1775121043075,-500.0,0.00015799,2]
[419293776,1775121043086,-500.0,0.00015799,2]
[419293779,1775121043103,-500.0,0.00015799,2]
[419293781,1775121043114,-500.0,0.00015799,2]
[419293783,1775121043126,-500.0,0.00015799,2]
[419293784,1775121043137,-500.0,0.00015799,2]
[419293787,1775121043148,-500.0,0.00015799,2]
[419293788,1775121043159,-500.0,0.00015799,2]
[419293790,1775121043170,-500.0,0.00015799,2]
[419293791,1775121043185,-500.0,0.00015799,2]
[419293792,1775121043195,-500.0,0.00015799,2]
[419293793,1775121043206,-500.0,0.00015799,2]
[419293794,1775121043217,-500.0,0.00015799,2]
[419293795,1775121043229,-500.0,0.00015799,2]
[419293796,1775121043240,-500.0,0.00015799,2]
[419293797,1775121043251,-500.0,0.00015799,2]
[419293799,1775121043263,-500.0,0.00015799,2]
[419293800,1775121043274,-500.0,0.00015799,2]
[419293801,1775121043285,-500.0,0.00015799,2]
[419293802,1775121043296,-500.0,0.00015799,2]
[419293803,1775121043307,-500.0,0.00015799,2]
[419293804,1775121043317,-500.0,0.00015799,2]
[419293805,1775121043327,-500.0,0.00015799,2]
[419293806,1775121043337,-484.31700749,0.00015799,2]
[419293807,1775121043348,-184.84985572,0.00015799,2]
[419293809,1775121043364,-315.15014428,0.00015799,2]
[419293810,1775121043380,-500.0,0.00015799,2]
[419293812,1775121043391,-500.0,0.00015799,2]
[419293813,1775121043401,-500.0,0.00015799,2]
[419293814,1775121043411,-500.0,0.00015799,2]
[419293815,1775121043422,-500.0,0.00015799,2]
[419293816,1775121043432,-500.0,0.00015799,2]
[419293817,1775121043443,-338995.5514,0.000158,2]
[419293818,1775121043453,-51791.38017169,0.000158,2]
[419293821,1775121043529,-943.78799,0.000158,2]
[419293830,1775121047044,-1035.08389315,0.000158,2]
[419293832,1775121047276,-525.568331,0.0001568,2]
[419293833,1775121047296,-4309.81416147,0.0001568,2]
[419293834,1775121047306,-741.36631743,0.000158,2]
[419293835,1775121047326,-902.4970347,0.000158,2]
[419293836,1775121047338,-88516.72404849,0.000158,2]
[419293837,1775121047460,-515.642885,0.000158,2]
[419293867,1775122231422,-184.52886775,0.0001,2]
[419293868,1775122231432,-294.0,0.0001,2]
[419293869,1775122231441,-169.07521549,0.0001,2]
[419293870,1775122231450,-1706.10711897,0.00012277,2]
[419293871,1775122231459,-181.66573023,0.00012433,2]
[419293872,1775122231468,-770.0,0.00012533,2]
[419293873,1775122231477,-1600.0,0.00012946,2]
[419293874,1775122231486,-250.0,0.00013,2]
[419293875,1775122231495,-600.0,0.0001323,2]
[419293876,1775122231504,-1205.01,0.00013488,2]
[419293877,1775122231514,-1056.66,0.00013492,2]
[419293878,1775122231523,-150.0,0.00013746,2]
[419293879,1775122231533,-341.0,0.00013791,2]
[419293880,1775122231542,-150.0,0.00013815,2]
[419293881,1775122231552,-150.0,0.000139,2]
[419293882,1775122231562,-1200.0,0.00013941,2]
[419293883,1775122231572,-300.0,0.00013942,2]
[419293884,1775122231582,-300.0,0.00013942,2]
[419293885,1775122231591,-300.0,0.00013942,2]
[419293886,1775122231601,-2500.0,0.00013943,2]
[419293887,1775122231610,-793.0,0.00013969,2]
[419293888,1775122231620,-1834.73,0.0001397,2]
[419293889,1775122231632,-500.0,0.00013984,2]
[419293890,1775122231641,-1196.17202,0.00014,2]
[419293891,1775122231651,-166.66,0.00014077,2]
[419293892,1775122231661,-150.0,0.00014089,2]
[419293893,1775122231674,-200.0,0.00014167,2]
[419293894,1775122231684,-600.0,0.00014301,2]
[419293895,1775122231694,-200.0,0.00014345,2]
[419293897,1775122231704,-166.66,0.00014374,2]
[419293899,1775122231713,-214.97769702,0.000144,2]
[419293900,1775122231722,-150.0,0.000144,2]
[419293901,1775122231733,-150.0,0.000144,2]
[419293902,1775122231742,-150.0,0.000144,2]
[419293903,1775122231752,-150.0,0.000144,2]
[419293906,1775122231766,-150.0,0.000144,2]
[419293907,1775122231776,-121.77999524,0.000144,2]
[419293925,1775122232207,-28.22000476,0.000144,2]
[419293926,1775122232218,-150.0,0.000144,2]
[419293927,1775122232228,-150.0,0.000144,2]
[419293928,1775122232237,-150.0,0.000144,2]
[419293929,1775122232247,-150.0,0.000144,2]
[419293930,1775122232256,-150.0,0.000144,2]
[419293931,1775122232266,-150.0,0.000144,2]
[419293932,1775122232275,-150.0,0.000144,2]
[419293933,1775122232284,-1200.27,0.000144,2]
[419293934,1775122232293,-160.0,0.0001442,7]
[419293935,1775122232303,-268.804244,0.0001442,7]
[419293936,1775122232313,-377.608488,0.0001442,7]
[419293937,1775122232323,-202.123655,0.00014426,7]
[419293938,1775122232332,-150.0,0.00014426,2]
[419293939,1775122232342,-150.0,0.00014426,2]
[419293940,1775122232351,-150.0,0.00014427,2]
[419293941,1775122232360,-148.71622364,0.00014428,2]
[419293942,1775122232372,-1.28377636,0.00014428,2]
[419293943,1775122232382,-150.0,0.00014433,2]
[419293944,1775122232391,-150.0,0.00014436,2]
[419293945,1775122232400,-150.0,0.00014452,2]
[419293946,1775122232410,-82.35562364,0.00014452,2]
[419293947,1775122232422,-67.64437636,0.00014452,2]
[419293948,1775122232432,-150.0,0.00014453,2]
[419293949,1775122232441,-150.0,0.00014455,2]
[419293950,1775122232451,-150.0,0.00014465,2]
[419293951,1775122232460,-150.0,0.0001447,2]
[419293952,1775122232470,-150.0,0.00014471,2]
[419293953,1775122232479,-500.0,0.00014472,7]
[419293954,1775122232489,-160.0,0.00014472,7]
[419293955,1775122232498,-163.481658,0.00014472,7]
[419293956,1775122232507,-166.963317,0.00014472,7]
[419293957,1775122232516,-187.244405,0.00014472,7]
[419293958,1775122232526,-150.0,0.00014479,2]
[419293959,1775122232536,-150.0,0.0001448,2]
[419293960,1775122232545,-150.0,0.00014483,2]
[419293961,1775122232555,-150.0,0.00014498,2]
[419293962,1775122232564,-150.0,0.000145,2]
[419293963,1775122232574,-150.0,0.00014503,2]
[419293964,1775122232584,-150.0,0.00014505,2]
[419293965,1775122232593,-150.0,0.00014507,2]
[419293966,1775122232603,-150.0,0.00014507,2]
[419293967,1775122232612,-150.0,0.0001451,2]
[419293968,1775122232621,-150.0,0.0001453,2]
[419293969,1775122232631,-150.0,0.00014531,2]
[419293970,1775122232640,-150.0,0.00014531,2]
[419293971,1775122232651,-150.0,0.00014533,2]
[419293972,1775122232661,-150.0,0.00014538,2]
[419293973,1775122232671,-150.0,0.00014539,2]
[419293974,1775122232681,-150.0,0.00014542,2]
[419293975,1775122232691,-150.0,0.00014555,2]
[419293976,1775122232700,-150.0,0.00014557,2]
[419293977,1775122232709,-150.0,0.0001456,2]
[419293978,1775122232718,-150.0,0.00014563,2]
[419293979,1775122232727,-150.0,0.00014566,2]
[419293980,1775122232737,-150.0,0.00014578,2]
[419293981,1775122232747,-150.0,0.00014578,2]
[419293982,1775122232756,-150.0,0.00014584,2]
[419293983,1775122232766,-150.0,0.00014587,2]
[419293984,1775122232775,-150.0,0.00014593,2]
[419293985,1775122232784,-150.0,0.00014596,2]
[419293986,1775122232794,-150.0,0.000146,2]
[419293987,1775122232804,-150.0,0.00014606,2]
[419293988,1775122232815,-150.0,0.00014609,2]
[419293989,1775122232834,-150.0,0.0001461,2]
[419293990,1775122232846,-150.0,0.00014613,2]
[419293991,1775122232856,-150.0,0.00014613,2]
[419293992,1775122232866,-150.0,0.00014621,2]
[419293993,1775122232876,-150.0,0.00014629,2]
[419293994,1775122232886,-150.0,0.00014636,2]
[419293995,1775122232896,-150.0,0.0001464,2]
[419293996,1775122232906,-1092.48,0.00014647,2]
[419293997,1775122232915,-150.0,0.00014648,2]
[419293998,1775122232925,-150.0,0.00014649,2]
[419293999,1775122232935,-150.0,0.00014658,2]
[419294000,1775122232944,-150.0,0.00014661,2]
[419294001,1775122232957,-150.0,0.00014662,2]
[419294002,1775122232967,-150.0,0.00014667,2]
[419294003,1775122232977,-150.0,0.00014667,2]
[419294004,1775122232988,-166.66,0.0001467,2]
[419294005,1775122232998,-1200.27,0.00014674,2]
[419294006,1775122233008,-150.0,0.00014676,2]
[419294007,1775122233018,-150.0,0.00014678,2]
[419294008,1775122233027,-150.0,0.00014684,2]
[419294009,1775122233037,-150.0,0.00014689,2]
[419294010,1775122233047,-150.0,0.00014693,2]
[419294011,1775122233056,-150.0,0.00014694,2]
[419294012,1775122233067,-1500.0,0.00014694,2]
[419294013,1775122233077,-150.0,0.000147,2]
[419294014,1775122233086,-150.0,0.00014703,2]
[419294015,1775122233096,-150.0,0.0001471,2]
[419294016,1775122233106,-150.0,0.00014715,2]
[419294017,1775122233116,-150.0,0.0001472,2]
[419294018,1775122233126,-150.0,0.0001472,2]
[419294019,1775122233136,-150.0,0.00014726,2]
[419294020,1775122233146,-150.0,0.00014726,2]
[419294021,1775122233156,-201.98702708,0.00014726,2]
[419294022,1775122233166,-150.0,0.00014727,2]
[419294023,1775122233177,-150.0,0.00014731,2]
[419294024,1775122233189,-150.0,0.00014741,2]
[419294025,1775122233199,-500.0,0.00014746,7]
[419294026,1775122233210,-150.0,0.00014747,2]
[419294027,1775122233219,-150.0,0.00014748,2]
[419294028,1775122233229,-150.0,0.00014756,2]
[419294029,1775122233238,-150.0,0.00014756,2]
[419294030,1775122233248,-150.0,0.00014759,2]
[419294031,1775122233257,-150.0,0.00014759,2]
[419294032,1775122233267,-150.0,0.00014761,2]
[419294033,1775122233276,-150.0,0.00014767,2]
[419294034,1775122233286,-150.0,0.00014773,2]
[419294035,1775122233295,-150.0,0.00014776,2]
[419294036,1775122233305,-150.0,0.00014786,2]
[419294037,1775122233315,-150.0,0.00014791,2]
[419294038,1775122233325,-150.0,0.00014792,2]
[419294039,1775122233335,-150.0,0.00014793,2]
[419294040,1775122233345,-150.0,0.000148,2]
[419294041,1775122233354,-150.0,0.000148,2]
[419294042,1775122233364,-348.2695,0.00014809,2]
[419294043,1775122233374,-18228.8299,0.00014809,2]
[419294044,1775122233384,-2500.0,0.00014809,2]
[419294045,1775122233393,-150.0,0.00014813,2]
[419294046,1775122233403,-150.0,0.00014814,2]
[419294047,1775122233412,-1844.76092101,0.00014816,2]
[419294048,1775122233424,-7007.86180758,0.00014816,2]
[419294049,1775122233448,-2012.78354579,0.00014816,2]
[419294050,1775122233460,-2910.45690926,0.00014816,2]
[419294051,1775122233470,-29627.21634564,0.00014816,2]
[419294052,1775122233480,-150.0,0.00014817,2]
[419294053,1775122233490,-150.0,0.0001482,2]
[419294054,1775122233501,-150.0,0.00014824,2]
[419294055,1775122233511,-150.0,0.00014827,2]
[419294056,1775122233521,-150.0,0.00014827,2]
[419294057,1775122233531,-1003.35,0.00014832,2]
[419294058,1775122233541,-457.1674475,0.00014839,2]
[419294059,1775122233551,-150.0,0.00014841,2]
[419294060,1775122233561,-150.0,0.00014846,2]
[419294061,1775122233571,-150.0,0.00014853,2]
[419294062,1775122233581,-253.42819697,0.00014855,2]
[419294063,1775122233591,-150.0,0.00014857,2]
[419294064,1775122233601,-150.0,0.00014862,2]
[419294065,1775122233611,-150.0,0.00014865,2]
[419294066,1775122233620,-150.0,0.00014869,2]
[419294067,1775122233630,-150.0,0.00014872,2]
[419294068,1775122233640,-500.0,0.00014873,2]
[419294069,1775122233649,-150.0,0.0001488,2]
[419294070,1775122233665,-150.0,0.00014887,2]
[419294071,1775122233676,-150.0,0.0001489,2]
[419294072,1775122233687,-150.0,0.00014897,2]
[419294073,1775122233697,-150.0,0.00014898,2]
[419294074,1775122233708,-220.96,0.00014898,2]
[419294075,1775122233718,-150.0,0.00014898,2]
[419294076,1775122233729,-150.0,0.000149,2]
[419294077,1775122233739,-150.0,0.00014907,2]
[419294078,1775122233749,-500.0,0.00014908,2]
[419294079,1775122233759,-500.0,0.00014908,2]
[419294080,1775122233770,-500.0,0.00014908,2]
[419294081,1775122233781,-500.0,0.00014908,2]
[419294082,1775122233791,-500.0,0.00014908,2]
[419294083,1775122233801,-500.0,0.00014908,2]
[419294084,1775122233812,-500.0,0.00014908,2]
[419294085,1775122233822,-500.0,0.00014908,2]
[419294086,1775122233832,-500.0,0.00014908,2]
[419294087,1775122233844,-315.36119761,0.00014908,2]
[419294088,1775122233854,-500.0,0.00014909,2]
[419294089,1775122233864,-246.78297367,0.00014909,2]
[419294090,1775122233876,-500.0,0.00014909,2]
[419294091,1775122233886,-500.0,0.00014909,2]
[419294092,1775122233896,-500.0,0.00014909,2]
[419294093,1775122233906,-500.0,0.00014909,2]